{"text_format":"3","workbook":"xlsx","n_sheets":3,"sheets":["Start","Buget cadou și monitorizare","Date"],"not_rendered":{"charts":1,"defined_names":1},"read":"whole","date_system":"1900"}

{"sheet":"Start","index":0,"n_rows":7,"n_cols":2,"rows_kept":7}
[null,"Despre Șablon"]
[null,"Utilizați acest șablon pentru a înregistra achizițiile de cadouri și a le monitoriza în raport cu bugetul."]
[null,"Introduceți în tabel numele rudelor și prietenilor, articolele cadou, sumele bugetate și cheltuite și notele și selectați ocazia și luna evenimentului."]
[null,"Diagrama de prezentare generală lunară este actualizată automat."]
[null,"Notă: "]
[null,"Instrucțiuni suplimentare sunt furnizate în coloana A din foaia de lucru BUGET CADOU ȘI MONITORIZARE. Acest text a fost ascuns intenționat. Pentru a elimina textul, selectați coloana A, apoi DELETE. Pentru a reafișa textul, selectați coloana A, apoi schimbați culoarea de font."]
[null,"Pentru a afla mai multe despre tabel, apăsați SHIFT, apoi F10 într-un tabel, selectați opțiunea TABEL, apoi TEXT ALTERNATIV."]

{"sheet":"Buget cadou și monitorizare","index":1,"n_rows":10,"n_cols":13,"rows_kept":10,"merged":[[0,1,0,4],[0,5,0,12],[1,1,1,2],[2,1,2,12],[3,1,3,3]]}
["Creați un buget personal pentru cadouri și o monitorizare în această foaie de lucru. Titlul foii de lucru se află în celula din dreapta și în vârful celulei F1. Găsiți instrucțiuni utile despre cum să utilizați această foaie de lucru în celulele din această coloană.","Buget cadou și monitorizare",{"$nulls":3},"Completați cât de mult puteți la începutul fiecărui an nou. Introduceți numele rudelor și prietenilor, selectați ocazia cadoului, selectați luna evenimentului și tastați cât doriți să cheltuiți. Fiecare persoană poate apărea de mai multe ori în tabel pentru fiecare ocazie diferită (zi de naștere, sărbătoare, petrecere pentru viitoarea mireasă sau viitorul bebeluș etc.)."]
["Eticheta Prezentare generală lunară se află în celula din dreapta și în vârful celulei D2.","Prezentare generală lunară",null,"Utilizați graficul pentru a analiza lunile viitoare în scopul planificării pentru viitor. Înregistrați achizițiile pentru a le monitoriza în raport cu bugetul dvs."]
["Diagrama coloană pentru sumele bugetate suprapusă cu diagrama cu linii pentru suma cheltuită se află în celula din dreapta.","Diagrama coloană pentru sumele bugetate suprapusă cu diagrama cu linii pentru suma cheltuită se află în această celulă."]
["Eticheta Buget cadou și Monitorizare se află în celula din dreapta.","Buget cadou și monitorizare"]
["Introduceți detaliile în tabelul Monitorizare buget începând din celula din dreapta.","Cine","Ocazie","Luna","Sumă\nbugetate","Sumă\ncheltuită","Cadou","Link către cadou","În magazin/\nOnline","Achiziţionat?","Ambalat?","Livrat?","Note"]
[null,"Nume 1","Zile de naștere","Iunie",{"v":50,"d":"50 lei"},{"v":30,"d":"30 lei"},"Pantofi","Vânzător:","Online","Da","Nu","Nu","16.06, Bilete de film"]
[null,"Nume 2","Aniversări","Aprilie",{"v":20,"d":"20 lei"},{"v":20,"d":"20 lei"},"O pisică","Vânzător:","În magazin","Nu","Nu","Nu","A menționat că îi plac câinii"]
[null,"Nume 3","Sărbători","Iulie",{"v":50,"d":"50 lei"},{"v":70,"d":"70 lei"},"Căști","Vânzător:","Online","Nu","Nu","Nu","Lucruri pentru cămin"]
[null,"Nume 4","Zile de naștere","Ianuarie",{"v":20,"d":"20 lei"},{"v":30,"d":"30 lei"},"Joc","Vânzător:","În magazin","Da","Da","Da"]
[null,"Nume 5","Nunți","Iunie",{"v":100,"d":"100 lei"},{"v":150,"d":"150 lei"},"Vas de cristal","Vânzător:","În magazin","Da","Da","Nu"]

{"sheet":"Date","index":2,"n_rows":13,"n_cols":8,"rows_kept":13,"hidden":true}
["Ocazii",null,"Dată","Dată","Suma bugetată\nZile de naștere","Suma bugetată\nSărbători","Suma bugetată\nAltele","Suma cheltuită"]
["Zile de naștere",null,"Ianuarie","Ian",{"$f":"SUMIFS(BudgetTracker[Sumă\nbugetate],BudgetTracker[Luna],\"Ianuarie\",BudgetTracker[Ocazie],\"Zile de naștere\")","v":{"v":20,"d":"20 lei"}},{"$f":"SUMIFS(BudgetTracker[Sumă\nbugetate],BudgetTracker[Luna],\"Ianuarie\",BudgetTracker[Ocazie],\"Sărbători\")","v":{"v":0,"d":"0 lei"}},{"$f":"SUMIFS(BudgetTracker[Sumă\nbugetate],BudgetTracker[Luna],\"Ianuarie\",BudgetTracker[Ocazie],\"<>Sărbători\",BudgetTracker[Ocazie],\"<>Zile de naștere\")","v":{"v":0,"d":"0 lei"}},{"$f":"SUMIFS(BudgetTracker[Sumă\ncheltuită],BudgetTracker[Luna],\"Ianuarie\")","v":{"v":30,"d":"30 lei"}}]
["Sărbători",null,"Februarie","Feb",{"$f":"SUMIFS(BudgetTracker[Sumă\nbugetate],BudgetTracker[Luna],\"Februarie\",BudgetTracker[Ocazie],\"Zile de naștere\")","v":{"v":0,"d":"0 lei"}},{"$f":"SUMIFS(BudgetTracker[Sumă\nbugetate],BudgetTracker[Luna],\"Februarie\",BudgetTracker[Ocazie],\"Sărbători\")","v":{"v":0,"d":"0 lei"}},{"$f":"SUMIFS(BudgetTracker[Sumă\nbugetate],BudgetTracker[Luna],\"Februarie\",BudgetTracker[Ocazie],\"<>Sărbători\",BudgetTracker[Ocazie],\"<>Zile de naștere\")","v":{"v":0,"d":"0 lei"}},{"$f":"SUMIFS(BudgetTracker[Sumă\ncheltuită],BudgetTracker[Luna],\"Februarie\")","v":{"v":0,"d":"0 lei"}}]
["Aniversări",null,"Martie","Mar",{"$f":"SUMIFS(BudgetTracker[Sumă\nbugetate],BudgetTracker[Luna],\"Martie\",BudgetTracker[Ocazie],\"Zile de naștere\")","v":{"v":0,"d":"0 lei"}},{"$f":"SUMIFS(BudgetTracker[Sumă\nbugetate],BudgetTracker[Luna],\"Martie\",BudgetTracker[Ocazie],\"Sărbători\")","v":{"v":0,"d":"0 lei"}},{"$f":"SUMIFS(BudgetTracker[Sumă\nbugetate],BudgetTracker[Luna],\"Martie\",BudgetTracker[Ocazie],\"<>Sărbători\",BudgetTracker[Ocazie],\"<>Zile de naștere\")","v":{"v":0,"d":"0 lei"}},{"$f":"SUMIFS(BudgetTracker[Sumă\ncheltuită],BudgetTracker[Luna],\"Martie\")","v":{"v":0,"d":"0 lei"}}]
["Nunți",null,"Aprilie","Apr",{"$f":"SUMIFS(BudgetTracker[Sumă\nbugetate],BudgetTracker[Luna],\"Aprilie\",BudgetTracker[Ocazie],\"Zile de naștere\")","v":{"v":0,"d":"0 lei"}},{"$f":"SUMIFS(BudgetTracker[Sumă\nbugetate],BudgetTracker[Luna],\"Aprilie\",BudgetTracker[Ocazie],\"Sărbători\")","v":{"v":0,"d":"0 lei"}},{"$f":"SUMIFS(BudgetTracker[Sumă\nbugetate],BudgetTracker[Luna],\"Aprilie\",BudgetTracker[Ocazie],\"<>Sărbători\",BudgetTracker[Ocazie],\"<>Zile de naștere\")","v":{"v":20,"d":"20 lei"}},{"$f":"SUMIFS(BudgetTracker[Sumă\ncheltuită],BudgetTracker[Luna],\"Aprilie\")","v":{"v":20,"d":"20 lei"}}]
["Petreceri pentru viitoarea mireasă",null,"Mai","Mai",{"$f":"SUMIFS(BudgetTracker[Sumă\nbugetate],BudgetTracker[Luna],\"Mai\",BudgetTracker[Ocazie],\"Zile de naștere\")","v":{"v":0,"d":"0 lei"}},{"$f":"SUMIFS(BudgetTracker[Sumă\nbugetate],BudgetTracker[Luna],\"Mai\",BudgetTracker[Ocazie],\"Sărbători\")","v":{"v":0,"d":"0 lei"}},{"$f":"SUMIFS(BudgetTracker[Sumă\nbugetate],BudgetTracker[Luna],\"Mai\",BudgetTracker[Ocazie],\"<>Sărbători\",BudgetTracker[Ocazie],\"<>Zile de naștere\")","v":{"v":0,"d":"0 lei"}},{"$f":"SUMIFS(BudgetTracker[Sumă\ncheltuită],BudgetTracker[Luna],\"Mai\")","v":{"v":0,"d":"0 lei"}}]
["Petreceri pentru viitorul bebeluș",null,"Iunie","Iun",{"$f":"SUMIFS(BudgetTracker[Sumă\nbugetate],BudgetTracker[Luna],\"Iunie\",BudgetTracker[Ocazie],\"Zile de naștere\")","v":{"v":50,"d":"50 lei"}},{"$f":"SUMIFS(BudgetTracker[Sumă\nbugetate],BudgetTracker[Luna],\"Iunie\",BudgetTracker[Ocazie],\"Sărbători\")","v":{"v":0,"d":"0 lei"}},{"$f":"SUMIFS(BudgetTracker[Sumă\nbugetate],BudgetTracker[Luna],\"Iunie\",BudgetTracker[Ocazie],\"<>Sărbători\",BudgetTracker[Ocazie],\"<>Zile de naștere\")","v":{"v":100,"d":"100 lei"}},{"$f":"SUMIFS(BudgetTracker[Sumă\ncheltuită],BudgetTracker[Luna],\"Iunie\")","v":{"v":180,"d":"180 lei"}}]
["Absolviri",null,"Iulie","Iul",{"$f":"SUMIFS(BudgetTracker[Sumă\nbugetate],BudgetTracker[Luna],\"Iulie\",BudgetTracker[Ocazie],\"Zile de naștere\")","v":{"v":0,"d":"0 lei"}},{"$f":"SUMIFS(BudgetTracker[Sumă\nbugetate],BudgetTracker[Luna],\"Iulie\",BudgetTracker[Ocazie],\"Sărbători\")","v":{"v":50,"d":"50 lei"}},{"$f":"SUMIFS(BudgetTracker[Sumă\nbugetate],BudgetTracker[Luna],\"Iulie\",BudgetTracker[Ocazie],\"<>Sărbători\",BudgetTracker[Ocazie],\"<>Zile de naștere\")","v":{"v":0,"d":"0 lei"}},{"$f":"SUMIFS(BudgetTracker[Sumă\ncheltuită],BudgetTracker[Luna],\"Iulie\")","v":{"v":70,"d":"70 lei"}}]
["Altele",null,"August","Aug",{"$f":"SUMIFS(BudgetTracker[Sumă\nbugetate],BudgetTracker[Luna],\"August\",BudgetTracker[Ocazie],\"Zile de naștere\")","v":{"v":0,"d":"0 lei"}},{"$f":"SUMIFS(BudgetTracker[Sumă\nbugetate],BudgetTracker[Luna],\"August\",BudgetTracker[Ocazie],\"Sărbători\")","v":{"v":0,"d":"0 lei"}},{"$f":"SUMIFS(BudgetTracker[Sumă\nbugetate],BudgetTracker[Luna],\"August\",BudgetTracker[Ocazie],\"<>Sărbători\",BudgetTracker[Ocazie],\"<>Zile de naștere\")","v":{"v":0,"d":"0 lei"}},{"$f":"SUMIFS(BudgetTracker[Sumă\ncheltuită],BudgetTracker[Luna],\"August\")","v":{"v":0,"d":"0 lei"}}]
[null,null,"Septembrie","Sep",{"$f":"SUMIFS(BudgetTracker[Sumă\nbugetate],BudgetTracker[Luna],\"Septembrie\",BudgetTracker[Ocazie],\"Zile de naștere\")","v":{"v":0,"d":"0 lei"}},{"$f":"SUMIFS(BudgetTracker[Sumă\nbugetate],BudgetTracker[Luna],\"Septembrie\",BudgetTracker[Ocazie],\"Sărbători\")","v":{"v":0,"d":"0 lei"}},{"$f":"SUMIFS(BudgetTracker[Sumă\nbugetate],BudgetTracker[Luna],\"Septembrie\",BudgetTracker[Ocazie],\"<>Sărbători\",BudgetTracker[Ocazie],\"<>Zile de naștere\")","v":{"v":0,"d":"0 lei"}},{"$f":"SUMIFS(BudgetTracker[Sumă\ncheltuită],BudgetTracker[Luna],\"Septembrie\")","v":{"v":0,"d":"0 lei"}}]
[null,null,"Octombrie","Oct",{"$f":"SUMIFS(BudgetTracker[Sumă\nbugetate],BudgetTracker[Luna],\"Octombrie\",BudgetTracker[Ocazie],\"Zile de naștere\")","v":{"v":0,"d":"0 lei"}},{"$f":"SUMIFS(BudgetTracker[Sumă\nbugetate],BudgetTracker[Luna],\"Octombrie\",BudgetTracker[Ocazie],\"Sărbători\")","v":{"v":0,"d":"0 lei"}},{"$f":"SUMIFS(BudgetTracker[Sumă\nbugetate],BudgetTracker[Luna],\"Octombrie\",BudgetTracker[Ocazie],\"<>Sărbători\",BudgetTracker[Ocazie],\"<>Zile de naștere\")","v":{"v":0,"d":"0 lei"}},{"$f":"SUMIFS(BudgetTracker[Sumă\ncheltuită],BudgetTracker[Luna],\"Octombrie\")","v":{"v":0,"d":"0 lei"}}]
[null,null,"Noiembrie","Nov",{"$f":"SUMIFS(BudgetTracker[Sumă\nbugetate],BudgetTracker[Luna],\"Noiembrie\",BudgetTracker[Ocazie],\"Zile de naștere\")","v":{"v":0,"d":"0 lei"}},{"$f":"SUMIFS(BudgetTracker[Sumă\nbugetate],BudgetTracker[Luna],\"Noiembrie\",BudgetTracker[Ocazie],\"Sărbători\")","v":{"v":0,"d":"0 lei"}},{"$f":"SUMIFS(BudgetTracker[Sumă\nbugetate],BudgetTracker[Luna],\"Noiembrie\",BudgetTracker[Ocazie],\"<>Sărbători\",BudgetTracker[Ocazie],\"<>Zile de naștere\")","v":{"v":0,"d":"0 lei"}},{"$f":"SUMIFS(BudgetTracker[Sumă\ncheltuită],BudgetTracker[Luna],\"Noiembrie\")","v":{"v":0,"d":"0 lei"}}]
[null,null,"Decembrie","Dec",{"$f":"SUMIFS(BudgetTracker[Sumă\nbugetate],BudgetTracker[Luna],\"Decembrie\",BudgetTracker[Ocazie],\"Zile de naștere\")","v":{"v":0,"d":"0 lei"}},{"$f":"SUMIFS(BudgetTracker[Sumă\nbugetate],BudgetTracker[Luna],\"Decembrie\",BudgetTracker[Ocazie],\"Sărbători\")","v":{"v":0,"d":"0 lei"}},{"$f":"SUMIFS(BudgetTracker[Sumă\nbugetate],BudgetTracker[Luna],\"Decembrie\",BudgetTracker[Ocazie],\"<>Sărbători\",BudgetTracker[Ocazie],\"<>Zile de naștere\")","v":{"v":0,"d":"0 lei"}},{"$f":"SUMIFS(BudgetTracker[Sumă\ncheltuită],BudgetTracker[Luna],\"Decembrie\")","v":{"v":0,"d":"0 lei"}}]